bitfinex-derivatives/quotes_ETHF0:USTF0_20251126
["timestamp","ask_amount","ask_price","bid_price","bid_amount"]
[1764159635766,0.2932,2894.0,2893.7,0.47028483]
[1764159636474,0.4966,2893.8,2893.7,0.47028483]
[1764159636673,0.4966,2893.8,2893.7,0.00518483]
[1764159637471,0.7898,2894.0,2893.9,0.4682]
[1764159638169,0.00518483,2894.3,2893.9,0.4682]
[1764159638575,0.4966,2894.0,2893.9,0.4682]
[1764159638975,0.7724,2894.0,2893.9,0.4682]
[1764159639377,0.4966,2893.8,2893.7,0.00518483]
[1764159639577,0.4966,2893.8,2893.7,0.47338483]
[1764159640383,0.4966,2893.8,2893.7,0.00518483]
[1764159641978,0.4966,2893.8,2893.7,0.47338483]
[1764159642483,0.4966,2893.8,2893.7,0.00518483]
[1764159646788,0.4966,2893.8,2893.7,0.47338483]
[1764159647284,0.4966,2893.8,2893.7,0.00518483]
[1764159649386,0.7724,2894.0,2893.9,0.4682]
[1764159649596,0.4966,2893.8,2893.7,0.47338483]
[1764159651486,0.4966,2893.8,2893.7,0.00518483]
[1764159653389,0.4966,2893.8,2893.7,0.47338483]
[1764159653790,0.2758,2894.0,2893.9,0.4682]
[1764159653988,0.7724,2894.0,2893.9,0.4682]
[1764159654287,0.4966,2893.8,2893.7,0.47338483]
[1764159656184,0.4966,2893.8,2893.7,0.00518483]
[1764159656385,0.7724,2894.0,2893.9,0.4682]
[1764159656997,0.4966,2893.8,2893.7,0.47338483]
[1764159657288,0.4966,2893.8,2893.7,0.00518483]
[1764159658689,0.4966,2893.8,2893.7,0.47338483]
[1764159658991,0.4966,2893.8,2893.7,0.00518483]
[1764159659490,2.07388689,2893.8,2893.7,0.00518483]
[1764159660391,0.4966,2893.8,2893.7,0.00518483]
[1764159660589,1.33810319,2893.8,2893.7,0.00518483]
[1764159662997,1.33810319,2893.8,2893.7,0.47338483]
[1764159663192,0.4966,2893.8,2893.7,0.47338483]
[1764159666204,0.4788,2893.8,2893.7,0.50178483]
[1764159666408,2.05608689,2893.8,2893.7,0.00518483]
[1764159666800,0.7591,2893.0,2892.9,2.47932247]
[1764159666996,0.4788,2892.8,2892.7,0.4966]
[1764159667496,0.4788,2892.8,2892.2,2.47932247]
[1764159667798,0.4788,2892.8,2892.3,0.50622528]
[1764159667799,0.4788,2892.4,2892.3,0.50622528]
[1764159668002,0.48224739,2892.4,2892.3,0.50622528]
[1764159668204,0.00344739,2892.4,2892.3,2.08351217]
[1764159668598,0.00344739,2892.4,2892.3,0.50622528]
[1764159669211,0.00518483,2892.8,2892.7,0.4966]
[1764159670305,0.48711583,2892.8,2892.7,0.4966]
[1764159671199,0.00831583,2892.8,2892.7,0.4966]
[1764159672001,0.48711583,2892.8,2892.7,0.4966]
[1764159672402,0.48711583,2892.8,2892.3,0.00962528]
[1764159672708,0.4788,2892.4,2892.3,0.50622528]
[1764159672904,0.4788,2892.4,2892.3,0.00962528]
[1764159673412,0.4788,2892.4,2891.5,0.2877]
[1764159674106,2.20928319,2892.2,2891.1,2.47932247]
[1764159674299,0.2803,2892.5,2891.0,0.1903]
[1764159674494,0.2803,2892.5,2891.5,0.00346265]
[1764159674698,0.4788,2891.6,2891.5,0.00346265]
[1764159674898,0.7591,2892.0,2891.9,0.4966]
[1764159675112,0.7591,2892.0,2891.5,0.00346265]
[1764159676912,0.2803,2892.5,2891.9,0.4966]
[1764159677508,0.7591,2892.5,2892.4,0.4966]
[1764159677805,0.00831583,2892.8,2892.4,0.4966]
[1764159678204,0.7591,2892.5,2892.0,0.2824]
[1764159678514,0.7591,2892.5,2891.5,0.29116265]
[1764159679204,0.00831583,2892.8,2892.4,0.4966]
[1764159679604,0.7591,2892.5,2892.4,0.4966]
[1764159680499,0.7591,2892.5,2891.5,0.29116265]
[1764159680703,0.7591,2892.5,2892.4,0.4966]
[1764159680903,0.00831583,2892.8,2892.4,0.4966]
[1764159681509,0.7591,2892.5,2891.5,2.50044584]
[1764159681710,0.7591,2892.5,2891.5,0.29116265]
[1764159682913,0.7591,2892.5,2892.4,0.4966]
[1764159683410,0.00831583,2892.8,2892.4,0.4966]
[1764159683614,0.00831583,2892.8,2891.5,0.29116265]
[1764159683615,0.7591,2892.5,2891.5,0.29116265]
[1764159683819,0.7591,2892.5,2892.4,0.4966]
[1764159684120,0.7591,2892.5,2891.5,0.29116265]
[1764159685617,0.7591,2892.5,2891.5,0.00346265]
[1764159685818,0.4788,2891.6,2891.5,0.50006265]
[1764159686217,0.4788,2891.6,2891.5,0.00346265]
[1764159687719,0.4788,2891.1,2891.0,0.50050905]
[1764159688316,0.4788,2891.1,2891.0,0.00390905]
[1764159689118,0.4788,2891.1,2890.2,0.06020704]
[1764159689319,0.2803,2891.0,2890.0,0.2824]
[1764159689916,0.2803,2891.0,2889.9,0.658]
[1764159690323,0.7591,2890.0,2889.9,0.00336127]
[1764159690525,0.76273372,2890.0,2889.9,0.49996127]
[1764159690819,0.76273372,2890.0,2889.9,0.00336127]
[1764159691415,0.00363372,2890.0,2889.9,0.49996127]
[1764159691828,0.76273372,2890.0,2889.9,0.00336127]
[1764159692618,0.00363372,2890.0,2889.9,0.49996127]
[1764159692829,0.48243372,2890.0,2889.9,0.49996127]
[1764159693027,0.76273372,2890.0,2889.9,0.00336127]
[1764159693424,0.76273372,2890.0,2889.9,0.49996127]
[1764159694030,0.76273372,2890.0,2889.9,0.00336127]
[1764159694630,0.76273372,2890.0,2889.0,0.1903]
[1764159694833,0.00518483,2889.8,2888.6,0.655]
[1764159695728,0.00518483,2889.8,2888.6,0.65753201]
[1764159697030,0.49578483,2889.8,2889.7,0.4966]
[1764159697436,0.00518483,2889.8,2889.7,0.4966]
[1764159700736,0.49578483,2889.8,2889.7,0.4966]
[1764159701541,0.00518483,2889.8,2889.7,0.4966]
[1764159702131,0.2803,2891.0,2890.4,0.4751]
[1764159702733,0.4906,2890.5,2890.4,0.4751]
[1764159703134,0.49324022,2890.5,2890.4,0.4751]
[1764159703636,0.00264022,2890.5,2890.4,0.4751]
[1764159703838,0.49324022,2890.5,2890.4,0.4751]
[1764159704039,0.77294022,2890.5,2890.4,0.4751]
[1764159704539,0.00264022,2890.5,2890.4,0.4751]
[1764159705133,0.00518483,2890.7,2890.6,0.4751]
[1764159705533,0.2797,2892.0,2891.4,0.4751]
[1764159705830,0.7703,2891.5,2891.0,0.211]
[1764159706028,0.49337791,2891.5,2891.4,0.4751]
[1764159706231,0.00277791,2891.5,2891.4,0.4751]
[1764159706428,0.2797,2892.0,2891.5,0.2774]
[1764159706632,0.2797,2892.5,2891.6,0.4751]
[1764159707330,0.28396129,2892.5,2891.6,0.4751]
[1764159707533,0.28396129,2892.5,2892.4,0.4751]
[1764159707836,0.00426129,2892.5,2892.4,0.4751]
[1764159708337,0.4906,2892.3,2892.2,0.00518483]
[1764159708935,0.28396129,2892.5,2892.2,0.48028483]
[1764159709243,0.4906,2892.3,2892.2,0.00518483]
[1764159710443,0.4906,2892.3,2892.2,0.48028483]
[1764159710643,0.28396129,2892.5,2892.2,0.48028483]
[1764159711146,0.4906,2892.3,2892.2,0.00518483]
[1764159715549,6.4906,2892.3,2891.0,0.21412807]
[1764159715845,0.4906,2892.3,2891.0,0.21412807]
[1764159716049,0.4906,2892.3,2891.0,0.00312807]
[1764159716449,0.4906,2891.5,2891.4,0.00518483]
[1764159716640,0.7703,2891.5,2891.4,0.00518483]
[1764159716947,0.7703,2891.5,2891.4,0.48028483]
[1764159718148,0.7703,2891.5,2891.4,0.00518483]
[1764159718350,0.4906,2891.1,2891.0,0.00312807]
[1764159720049,0.2797,2891.5,2891.0,0.47822807]
[1764159720250,0.4906,2891.1,2891.0,0.00312807]
[1764159721146,0.4906,2891.1,2891.0,0.47822807]
[1764159721445,0.2797,2892.0,2891.4,0.4751]
[1764159721846,0.2797,2892.0,2891.9,0.4751]
[1764159722052,0.28396129,2892.5,2891.9,0.4751]
[1764159724654,0.7703,2892.0,2891.0,0.22452807]
[1764159725148,0.28396129,2892.5,2891.9,0.4751]
[1764159726549,0.7492,2892.0,2891.5,0.2742]
[1764159727852,0.28396129,2892.5,2891.9,0.4967]
[1764159728054,0.75346129,2892.5,2892.4,0.4967]
[1764159728251,0.00426129,2892.5,2892.4,0.4967]
[1764159728856,0.75346129,2892.5,2892.0,0.2742]
[1764159729550,0.2797,2893.5,2892.6,0.4967]
[1764159730558,0.4639,2892.9,2892.8,0.00518483]
[1764159731061,0.00518483,2893.3,2892.9,0.4967]
[1764159731763,0.00518483,2893.3,2893.2,0.4967]
[1764159732062,0.46908483,2893.3,2893.2,0.00272763]
[1764159733750,0.00518483,2893.3,2893.2,0.49942763]
[1764159734261,0.91897004,2894.9,2893.5,0.2742]
[1764159734452,0.91897004,2895.2,2893.5,0.2742]
[1764159735156,0.00266087,2894.5,2894.4,0.4967]
[1764159735756,0.00518483,2894.7,2894.6,0.4967]
[1764159735955,0.46908483,2894.7,2894.4,0.00518483]
[1764159736160,0.00518483,2894.7,2894.6,0.4967]
[1764159736754,0.00778649,2894.7,2894.6,0.4967]
[1764159738264,0.00778649,2894.7,2894.4,0.00518483]
[1764159738564,0.00778649,2894.7,2894.6,0.4967]
[1764159740763,0.47168649,2894.7,2894.4,0.00518483]
[1764159741969,0.00778649,2894.7,2894.6,0.4967]
[1764159743157,0.2853,2895.5,2894.6,0.4967]
[1764159744368,0.2853,2896.5,2895.9,0.4967]
[1764159744962,0.2853,2897.5,2896.9,0.4967]
[1764159745356,0.00324257,2897.5,2897.4,0.4967]
[1764159745558,0.0084274,2897.5,2897.4,0.4967]
[1764159745757,0.7576274,2897.5,2896.9,0.00954727]
[1764159746355,0.7576274,2897.5,2897.0,0.2295]
[1764159746571,0.4723274,2897.5,2897.0,0.2295]
[1764159746771,0.2853,2898.5,2897.4,0.4967]
[1764159747769,0.29216378,2898.0,2897.4,0.4967]
[1764159748270,0.7492,2897.5,2896.9,0.00954727]
[1764159750369,0.7492,2897.0,2896.9,0.00954727]
[1764159750772,0.2853,2897.5,2896.9,0.50624727]
[1764159752164,0.4639,2897.0,2896.9,0.00954727]
[1764159752466,0.29216378,2898.0,2897.0,0.2295]
[1764159754774,0.29216378,2898.0,2896.9,0.00954727]
[1764159755076,0.29216378,2898.0,2897.0,0.2295]
[1764159757972,0.29216378,2898.0,2896.9,0.00954727]
[1764159758675,0.7531,2897.0,2896.9,0.00954727]
[1764159758977,0.2924,2897.5,2896.9,0.47394727]
[1764159760173,0.29216378,2898.0,2897.4,0.4644]
[1764159765375,0.7531,2897.5,2897.4,0.4644]
[1764159765577,0.29216378,2898.0,2897.4,0.4644]
[1764159765773,0.4607,2897.5,2897.4,0.4644]
[1764159765973,0.29216378,2898.0,2897.4,0.4644]
[1764159769369,0.4607,2897.5,2897.4,0.4644]
[1764159771080,0.29216378,2898.0,2897.4,0.4644]
[1764159771281,0.83815553,2897.9,2897.4,0.4644]
[1764159771475,0.29216378,2898.0,2897.4,0.4644]
[1764159771676,0.83815553,2897.9,2897.4,0.4644]
[1764159771882,0.29216378,2898.0,2897.4,0.4644]
[1764159772078,0.83815553,2897.9,2897.4,0.4644]
[1764159772283,0.83815553,2897.8,2897.4,0.4644]
[1764159772484,0.83815553,2897.8,2897.0,0.2279]
[1764159772485,1.29885553,2897.7,2897.6,0.4644]
[1764159773980,1.51747505,2898.0,2897.6,0.4644]
[1764159773981,0.2853,2898.5,2898.0,0.2742]
[1764159774187,1.8354167,2898.6,2898.5,0.4644]
[1764159774480,2.2961167,2898.6,2898.2,2.20369001]
[1764159774679,2.2961167,2898.6,2897.5,0.2742]
[1764159774680,1.22922783,2898.4,2897.8,2.20369001]
[1764159774984,0.00251385,2898.4,2897.8,2.20369001]
[1764159775473,0.00251385,2898.4,2898.3,0.4644]
[1764159775672,0.46321385,2898.4,2898.3,0.4644]
[1764159776284,0.00251385,2898.4,2898.3,0.4644]
[1764159777986,1.22922783,2899.2,2898.8,0.4644]
[1764159778190,1.22922783,2899.3,2898.8,0.4644]
[1764159778688,1.22922783,2899.3,2898.7,0.00517554]
[1764159778689,0.4607,2898.8,2898.7,0.00517554]
[1764159778890,0.46476879,2898.8,2898.7,0.00517554]
[1764159779378,0.46476879,2898.8,2898.7,0.46957554]
[1764159780293,0.46476879,2898.8,2898.7,0.00517554]
[1764159781381,0.7531,2898.0,2897.9,0.432]
[1764159781587,0.2924,2898.5,2898.0,0.2742]
[1764159781983,0.2924,2898.5,2898.4,0.4644]
[1764159782383,0.4607,2898.3,2898.2,0.00517554]
[1764159783579,0.47436995,2898.3,2898.2,0.00517554]
[1764159784186,0.4880399,2898.3,2898.2,0.00517554]
[1764159784992,0.50170985,2898.3,2898.2,0.00517554]
[1764159785688,0.5153798,2898.3,2898.2,0.00517554]
[1764159785890,1.34000452,2898.3,2898.2,0.00517554]
[1764159786088,0.5153798,2898.3,2898.2,0.00517554]
[1764159788197,0.0546798,2898.3,2898.2,0.47037554]
[1764159788698,0.5453798,2898.3,2898.2,0.00517554]
[1764159789090,0.5453798,2898.3,2898.2,0.47527554]
[1764159789287,0.0546798,2898.3,2898.2,0.47527554]
[1764159793295,0.00514452,2898.7,2898.6,0.4701]
[1764159793599,0.2924,2899.5,2898.7,0.4701]
[1764159793998,0.2924,2900.0,2899.4,0.4701]
[1764159794198,0.4907,2899.5,2899.4,0.4701]
[1764159794502,0.77129644,2899.5,2899.4,0.00286726]
[1764159795202,0.28059644,2899.5,2899.4,0.47296726]
[1764159795502,0.77129644,2899.5,2899.4,0.00286726]
[1764159795703,0.77129644,2899.5,2899.4,0.47296726]
[1764159796303,0.77129644,2899.5,2899.4,0.00286726]
[1764159796898,0.00299644,2899.5,2899.4,0.47296726]
[1764159797301,0.77129644,2899.5,2899.4,0.00286726]
[1764159797501,0.77129644,2899.5,2899.4,0.47296726]
[1764159797701,0.00299644,2899.5,2899.4,2.67665727]
[1764159798107,0.00299644,2899.5,2899.4,0.47296726]
[1764159798497,0.77129644,2899.5,2899.4,0.00286726]
[1764159800906,0.77129644,2899.5,2899.4,0.47296726]
[1764159801303,0.77129644,2899.5,2899.4,0.00286726]
[1764159802115,0.00299644,2899.5,2899.4,0.47296726]
[1764159802718,0.77129644,2899.5,2899.4,0.47296726]
[1764159802909,0.77129644,2899.5,2899.4,0.00286726]
[1764159813230,0.77129644,2899.5,2899.4,0.47296726]
[1764159813824,0.77129644,2899.5,2899.4,0.00286726]
[1764159819828,0.75429644,2899.5,2899.4,0.00286726]
[1764159820832,0.00299644,2899.5,2899.4,0.46356726]
[1764159821230,0.75429644,2899.5,2899.4,0.00286726]
[1764159821432,0.4817,2898.7,2898.6,3.73732247]
[1764159821633,0.4817,2898.7,2898.6,1.258]
[1764159821933,0.4817,2898.7,2898.6,1.7187]
[1764159822434,0.4817,2898.7,2898.6,1.26094369]
[1764159823231,0.4817,2898.7,2898.6,1.72164369]
[1764159823730,0.4817,2898.7,2898.6,0.00294369]
[1764159823933,0.4817,2898.3,2898.2,0.48558554]
[1764159825029,0.4817,2898.3,2898.2,0.48841031]
[1764159829034,0.4817,2898.3,2897.1,2.47932247]
[1764159829339,0.4817,2898.3,2897.1,5.02199593]
[1764159830034,0.4817,2898.3,2897.1,5.02459875]
[1764159830337,0.00517554,2898.0,2897.5,0.2913]
[1764159830831,0.4817,2897.6,2897.5,0.752]
[1764159831039,0.4817,2897.6,2897.5,0.4607]
[1764159831432,0.27477554,2898.0,2897.5,0.752]
[1764159831736,0.4817,2897.6,2897.5,0.4607]
[1764159831939,0.4817,2897.5,2897.4,0.00517554]
[1764159832131,0.7513,2897.5,2897.4,0.00517554]
[1764159841342,0.00517554,2898.0,2897.9,0.4607]
[1764159842651,0.27259644,2899.5,2898.0,0.2913]
[1764159843343,0.27259644,2899.5,2898.2,2.54267346]
[1764159846856,0.27259644,2899.5,2898.3,2.47932247]
[1764159848458,0.27259644,2899.5,2898.5,0.2915]
[1764159849461,0.00299644,2899.5,2899.4,0.4944]
[1764159849651,0.00299644,2899.5,2899.4,0.49843037]
[1764159849853,0.6255,2899.5,2899.4,0.00403037]
[1764159850451,0.1663,2900.0,2899.4,0.49843037]
[1764159850651,0.1663,2900.0,2899.5,0.2915]
[1764159850853,0.16882651,2900.0,2899.5,0.2915]
[1764159852351,0.4592,2899.6,2899.4,0.00403037]
[1764159852552,0.4592,2899.5,2899.4,0.00403037]
[1764159853848,0.7431,2899.5,2899.4,0.00403037]
[1764159854160,0.16882651,2900.0,2899.5,0.2915]
[1764159854662,0.4592,2899.5,2899.4,0.00403037]
[1764159855255,0.7431,2899.5,2899.4,0.00403037]
[1764159855855,0.4592,2899.5,2899.4,0.00403037]
[1764159856053,0.4592,2899.5,2899.4,0.49843037]
[1764159856859,0.4592,2899.5,2899.4,0.00403037]
[1764159857053,0.16882651,2900.0,2899.4,0.49843037]
[1764159857258,0.16882651,2900.0,2899.5,0.2915]
[1764159859258,0.00252651,2900.0,2899.9,0.4944]
[1764159860272,0.2696,2901.0,2900.0,0.2915]
[1764159861360,0.27356736,2901.0,2900.0,0.2915]
[1764159862264,0.2839,2900.0,2899.5,0.2915]
[1764159862464,0.2839,2900.5,2899.5,0.2915]
[1764159866473,0.2839,2900.5,2899.7,2.54267346]
[1764159866972,0.27356736,2901.0,2900.4,0.4944]
[1764159867178,0.4592,2900.5,2900.4,0.4944]
[1764159867880,0.4592,2900.6,2900.0,0.2915]
[1764159868084,0.2839,2900.5,2900.0,0.2915]
[1764159868690,0.4592,2900.1,2900.0,0.4944]
[1764159868980,0.4592,2900.1,2899.5,2.64613093]
[1764159868981,0.4592,2900.1,2899.5,4.23413093]
[1764159869182,0.4592,2900.1,2900.0,0.4944]
[1764159869478,0.2839,2900.5,2900.0,0.4944]
[1764159869688,0.4592,2900.1,2900.0,0.4944]
[1764159869880,0.2839,2900.5,2899.4,0.00403037]
[1764159869881,0.4592,2899.5,2899.4,0.00403037]
[1764159870076,0.2839,2900.0,2899.4,0.49843037]
[1764159870281,0.2839,2900.0,2899.5,0.2915]
[1764159870788,0.4592,2899.5,2899.4,0.00403037]
[1764159870988,0.4592,2899.5,2899.4,0.49843037]
[1764159872091,0.7431,2899.5,2899.4,0.00403037]
[1764159872291,0.2839,2900.0,2899.4,0.49843037]
[1764159874287,0.4592,2899.5,2899.4,0.49843037]
[1764159874487,0.7431,2899.5,2899.4,0.00403037]
[1764159875897,0.4592,2899.5,2899.4,0.00403037]
[1764159876097,0.7559,2899.5,2899.4,0.00403037]
[1764159878703,0.2839,2900.0,2899.4,0.49513037]
[1764159879100,0.2839,2900.0,2899.5,0.2895]
[1764159879296,0.2839,2900.0,2899.5,2.64413093]
[1764159880393,0.4893,2900.0,2899.9,0.4911]
[1764159880805,0.4893,2900.0,2899.5,2.64413093]
[1764159881007,0.7785,2900.0,2899.5,2.64413093]
[1764159882704,0.2839,2900.5,2899.9,2.84573093]
[1764159882908,0.2839,2900.5,2900.0,0.2895]
[1764159883105,0.4893,2900.1,2900.0,0.4911]
[1764159883603,0.4893,2899.6,2899.5,0.4911]
[1764159883804,0.7785,2899.5,2899.4,0.00403037]
[1764159887711,0.7785,2899.5,2899.4,0.49513037]
[1764159887712,0.4893,2899.5,2899.4,0.49513037]
[1764159889113,0.7785,2899.5,2899.4,0.00403037]
[1764159889606,0.4893,2899.5,2899.4,0.49513037]
[1764159891100,0.7785,2899.5,2899.4,0.00403037]
[1764159891608,0.7785,2899.5,2899.4,0.49513037]
[1764159891808,0.4893,2899.5,2899.4,0.49513037]
[1764159892808,0.2967,2900.0,2899.4,0.49513037]
[1764159893010,0.4893,2899.5,2899.4,0.49513037]
[1764159895012,0.2967,2900.0,2899.4,0.49513037]
[1764159895013,0.2967,2900.0,2899.5,0.2895]
[1764159895916,0.4893,2900.0,2899.9,0.4911]
[1764159896116,0.7785,2900.0,2899.9,0.4911]
[1764159896416,0.7785,2900.0,2899.5,2.64413093]
[1764159897414,0.4893,2899.6,2899.5,0.4911]
[1764159898510,0.4893,2899.6,2899.4,0.00403037]
[1764159898715,0.2892,2900.0,2899.4,0.49513037]
[1764159898914,0.786,2899.5,2899.4,0.00403037]
[1764159899112,0.786,2899.5,2899.4,0.49513037]
[1764159900416,0.4893,2899.5,2899.4,0.49513037]
[1764159901310,0.786,2899.5,2899.4,0.00403037]
[1764159905120,0.4893,2899.5,2899.4,0.49513037]
[1764159905321,0.7859,2899.5,2899.4,0.00403037]
[1764159906031,0.7859,2899.5,2899.4,0.47533037]
[1764159906032,0.4893,2899.5,2899.4,0.47533037]
[1764159907618,0.7594,2899.5,2899.4,0.47533037]
[1764159907823,0.4893,2899.5,2899.4,0.47533037]
[1764159908014,0.2892,2900.0,2899.4,0.47533037]
[1764159908216,0.92263025,2900.3,2899.8,2.82593093]
[1764159908512,0.2839,2900.5,2899.8,2.82593093]
[1764159911320,0.7346,2900.5,2900.4,0.4713]
[1764159912925,0.4507,2900.5,2900.4,0.4713]
[1764159913520,0.4507,2900.1,2900.0,0.7674]
[1764159914023,0.2701,2900.5,2900.0,0.7674]
[1764159914224,0.4507,2900.5,2900.4,0.4713]
[1764159914428,0.4507,2900.1,2900.0,0.7674]
[1764159914627,0.2701,2900.5,2900.0,0.7674]
[1764159915229,0.7208,2900.5,2900.4,0.4713]
[1764159915433,0.4507,2900.5,2900.4,0.4713]
[1764159915624,0.7208,2900.5,2900.0,0.2961]
[1764159916028,0.7208,2900.5,2900.4,0.4713]
[1764159916530,0.4507,2900.5,2900.4,0.4713]
[1764159917029,0.27356736,2901.0,2900.5,0.2961]
[1764159917529,0.72476736,2901.0,2900.5,0.2961]
[1764159917926,0.72476736,2901.0,2900.9,0.4713]
[1764159918617,0.45466736,2901.0,2900.9,0.4713]
[1764159919126,0.72476736,2901.0,2900.9,0.4713]
[1764159919630,0.45466736,2901.0,2900.9,0.4713]
[1764159921226,0.00396736,2901.0,2900.9,0.4713]
[1764159921632,0.2701,2901.5,2900.9,0.4713]
[1764159921930,0.4507,2901.1,2901.0,0.4713]
[1764159922130,0.4507,2900.8,2900.7,0.00517554]
[1764159922330,0.4507,2900.8,2900.7,0.47647554]
[1764159922731,0.45485451,2900.8,2900.7,0.47647554]
[1764159923437,0.00415451,2900.8,2900.7,0.47647554]
[1764159924929,0.2701,2902.0,2900.7,6.47647554]
[1764159925135,0.2701,2902.0,2901.0,2.65073093]
[1764159925629,0.4507,2901.1,2901.0,0.7674]
[1764159925927,0.4507,2901.1,2901.0,0.4713]
[1764159926230,0.4507,2900.8,2900.7,0.00517554]
[1764159926420,0.00356045,2901.1,2900.9,0.4713]
[1764159926625,0.7208,2901.0,2900.9,0.4713]
[1764159926821,0.4507,2900.8,2900.1,2.47932247]
[1764159927027,0.2701,2901.0,2899.8,0.4713]
[1764159927028,0.2701,2900.5,2899.8,0.4713]
[1764159927227,0.2701,2900.5,2900.0,2.65073093]
[1764159928025,0.27527554,2900.5,2900.0,2.65590647]
[1764159928532,0.27527554,2900.5,2900.0,0.30127554]
[1764159928831,0.45587554,2900.5,2900.4,0.4713]
[1764159929533,0.00517554,2900.5,2900.4,0.4713]
[1764159929725,0.45587554,2900.5,2900.4,0.4713]
[1764159930435,0.00517554,2900.5,2900.4,0.4713]
[1764159932930,0.45587554,2900.5,2900.4,0.4713]
[1764159933126,0.00517554,2900.5,2900.4,0.4713]
[1764159933729,0.2701,2901.0,2900.5,0.2961]
[1764159934421,0.00356045,2901.1,2901.0,0.4713]
[1764159934829,0.45426045,2901.1,2901.0,0.4713]
[1764159935624,0.2774,2901.0,2900.5,0.2961]
[1764159935922,0.2774,2901.0,2900.5,0.7919]
[1764159937527,0.7255,2901.0,2900.9,0.4958]
[1764159938835,0.7255,2901.0,2900.5,0.2961]
[1764159939232,0.00356045,2901.1,2901.0,0.7764]
[1764159939733,0.45166045,2901.1,2901.0,0.4958]
[1764159941331,0.45166045,2901.1,2900.5,2.77542247]
[1764159941534,0.2774,2901.0,2900.5,2.77542247]
[1764159941725,0.7255,2901.0,2900.9,0.4958]
[1764159943436,0.4481,2901.0,2900.9,0.4958]
[1764159944337,0.00356045,2901.1,2901.0,0.7764]
[1764159944735,0.45166045,2901.1,2901.0,0.4958]
[1764159945837,0.2774,2901.0,2900.5,2.77542247]
[1764159946033,0.7255,2901.0,2900.9,0.4958]
[1764159946439,0.4481,2901.0,2900.9,0.4958]
[1764159947540,0.45166045,2901.1,2901.0,0.4958]
[1764159949535,0.2701,2902.0,2901.0,3.31705983]
[1764159949732,0.2701,2902.0,2901.2,2.47932247]
[1764159950138,0.2701,2902.0,2901.1,2.47932247]
[1764159950534,0.27371759,2902.0,2901.1,2.47932247]
[1764159950745,0.4481,2901.2,2901.1,0.4958]
[1764159951043,0.4481,2901.0,2900.9,0.4958]
[1764159951643,0.4481,2900.7,2900.6,0.4958]
[1764159951846,0.4481,2900.6,2900.5,0.4958]
[1764159952247,0.4481,2900.4,2900.3,0.4958]
[1764159952437,0.2774,2901.0,2900.3,0.4958]
[1764159952941,0.4481,2900.4,2900.3,0.4958]
[1764159954148,0.4481,2900.2,2900.1,2.97512247]
[1764159954354,0.4481,2900.2,2900.1,0.4958]
[1764159954553,0.7255,2900.5,2900.4,0.4958]
[1764159954758,0.7255,2900.5,2900.0,0.30127554]
[1764159955265,0.7255,2900.5,2900.4,0.4958]
[1764159955450,0.4481,2900.5,2900.4,0.4958]
[1764159956653,0.2774,2901.0,2900.4,0.4958]
[1764159956859,0.2774,2901.0,2900.5,0.2806]
[1764159957359,0.2774,2900.5,2900.0,2.78059801]
[1764159959659,0.4481,2900.1,2900.0,3.27639801]
[1764159960761,0.2774,2900.5,2900.0,0.79707554]
[1764159961458,0.4481,2900.5,2900.4,0.4958]
[1764159961651,0.4481,2900.5,2900.0,0.50097554]
[1764159961652,0.4481,2900.1,2900.0,0.50097554]
[1764159961850,0.4481,2900.1,2900.0,0.78157554]
[1764159962164,0.4481,2900.5,2900.4,0.4958]
[1764159962361,0.2774,2901.0,2900.4,0.4958]
[1764159962558,0.4481,2900.6,2900.5,0.7764]
[1764159962963,0.4481,2900.6,2900.5,0.4958]
[1764159963166,0.2774,2901.0,2900.5,0.7764]
[1764159963759,0.2774,2900.5,2900.1,2.47932247]
[1764159963964,0.4481,2900.2,2900.1,2.97512247]
[1764159964165,0.4481,2900.1,2900.0,2.48449801]
[1764159964365,0.4481,2900.1,2900.0,0.50097554]
[1764159964567,0.4481,2900.1,2900.0,0.00517554]
[1764159964758,0.4481,2900.1,2900.0,0.50097554]
[1764159966262,0.4481,2900.1,2900.0,0.00517554]
[1764159969869,0.2774,2900.5,2900.0,0.76227554]
[1764159972061,0.4712,2900.1,2900.0,0.00517554]
[1764159976676,0.4712,2900.1,2900.0,0.48107554]
[1764159977175,0.2774,2900.5,2900.0,0.76227554]
[1764159978165,0.4712,2900.1,2900.0,0.76227554]
[1764159978584,0.2774,2900.5,2900.0,0.76227554]
[1764159979577,0.4712,2900.1,2900.0,0.48107554]
[1764159980076,0.4712,2900.1,2900.0,0.00517554]
[1764159980580,0.2774,2900.5,2899.4,0.00403037]
[1764159980581,0.4712,2899.5,2899.4,0.00403037]
[1764159980779,0.47473608,2899.5,2899.4,0.00403037]
[1764159980970,0.47473608,2899.5,2899.4,0.47993037]
[1764159981674,0.47473608,2899.5,2899.4,0.00403037]
[1764159981675,0.75023608,2899.5,2899.4,0.00403037]
[1764159981881,0.00353608,2899.5,2899.4,0.47993037]
[1764159982079,0.47473608,2899.5,2899.4,0.47993037]
[1764159982882,0.00353608,2899.5,2899.4,0.47993037]
[1764159983877,0.47473608,2899.5,2899.4,0.47993037]
[1764159984282,0.00353608,2899.5,2899.4,0.47993037]
[1764159986587,0.47473608,2899.5,2899.4,0.47993037]
[1764159986884,0.75023608,2899.5,2899.4,0.47993037]
[1764159987089,0.75023608,2899.5,2899.4,0.00403037]
[1764159992194,0.4712,2898.6,2898.5,0.4759]
[1764159992982,0.2755,2899.0,2898.5,0.7571]
[1764159993291,0.2755,2899.0,2898.5,0.7654657]
[1764159993486,0.27903608,2899.5,2898.9,0.4759]
[1764159993788,0.75023608,2899.5,2899.0,0.2812]
[1764159993987,0.4712,2899.1,2898.6,2.47932247]
[1764159994192,0.27903608,2899.5,2899.0,0.7571]
[1764159994490,0.00353608,2899.5,2899.4,0.4759]
[1764159994696,0.47473608,2899.5,2899.4,0.4759]
[1764159994893,0.75023608,2899.5,2899.0,0.2812]
[1764159995096,0.4712,2899.1,2899.0,0.7571]
[1764159995296,0.27903608,2899.5,2899.0,0.7618]
[1764159995498,0.49993608,2899.5,2899.4,0.4702]
[1764159996190,0.79233608,2899.5,2899.0,0.2859]
[1764159996390,0.4964,2899.1,2898.7,2.47932247]
[1764159996790,0.4964,2899.1,2899.0,0.4702]
[1764159996992,0.49993608,2899.5,2899.4,0.4702]